fUSD/lending_fUSD_20260614
["ID","MTS","AMOUNT","RATE_DAILY","PERIOD"]
[425025298,1781436650000,-500.0,0.00028219,8]
[425025312,1781436650000,-2165.99,0.00028219,8]
[425025294,1781436650000,-309.73,0.00028219,8]
[425025291,1781436650000,-500.0,0.00028219,8]
[425025288,1781436650000,-500.0,0.00028219,8]
[425025290,1781436650000,-500.0,0.00028219,8]
[425025292,1781436650000,-500.0,0.00028219,8]
[425025289,1781436650000,-500.0,0.00028219,8]
[425025293,1781436650000,-500.0,0.00028219,8]
[425025304,1781436650000,-437.98,0.00028219,8]
[425025305,1781436650000,-394.75,0.00028219,8]
[425025296,1781436650000,-540.85,0.00028219,8]
[425025295,1781436650000,-500.0,0.00028219,8]
[425025306,1781436650000,-500.0,0.00028219,8]
[425025318,1781436650000,-536.52,0.00028219,8]
[425025297,1781436650000,-597.15,0.00028219,8]
[425025353,1781436650000,-347.18834706,0.00028366,7]
[425025301,1781436650000,-245.08,0.00028219,8]
[425025303,1781436650000,-182.51,0.00028219,8]
[425025299,1781436650000,-463.38,0.00028219,8]
[425025302,1781436650000,-171.31,0.00028219,8]
[425025307,1781436650000,-306.53,0.00028219,8]
[425025310,1781436650000,-500.0,0.00028219,8]
[425025311,1781436650000,-151.0,0.00028219,2]
[425025309,1781436650000,-1000.0,0.00028219,8]
[425025314,1781436650000,-292.28,0.00028219,8]
[425025313,1781436650000,-257.68,0.00028219,8]
[425025315,1781436650000,-500.0,0.00028219,8]
[425025300,1781436650000,-214.07,0.00028219,8]
[425025354,1781436650000,-380.52789371,0.00028366,7]
[425025334,1781436650000,-317.34173481,0.00028274,14]
[425025344,1781436650000,-2327.0,0.00028366,3]
[425025381,1781436650000,-207.42661947,0.00028377,7]
[425025378,1781436650000,-175.60787853,0.00028377,7]
[425025389,1781436650000,-1228.0,0.00028394,2]
[425025388,1781436650000,-1275.0,0.00028394,2]
[425025382,1781436650000,-223.67838805,0.00028377,7]
[425025380,1781436650000,-195.48094116,0.00028377,7]
[425025387,1781436650000,-383.0,0.00028394,2]
[425025383,1781436650000,-221.1834868,0.00028377,7]
[425025379,1781436650000,-204.29489666,0.00028377,7]
[425025384,1781436650000,-304.49339195,0.00028387,7]
[425025386,1781436650000,-519.0,0.00028394,2]
[425025391,1781436650000,-500.0,0.00028397,8]
[425025393,1781436650000,-303.93,0.00028398,8]
[425025401,1781436650000,-500.0,0.00028478,8]
[425025402,1781436650000,-500.0,0.00028478,8]
[425025390,1781436650000,-3644.0,0.00028394,2]
[425025395,1781436650000,-158.24913116,0.00028431,2]
[425025392,1781436650000,-339.0,0.00028398,5]
[425025396,1781436650000,-317.34173481,0.00028438,14]
[425025400,1781436650000,-500.0,0.00028478,8]
[425025399,1781436650000,-500.0,0.00028478,8]
[425025394,1781436650000,-152.0,0.00028418,4]
[425025343,1781436650000,-240.31558069,0.00028366,7]
[425025397,1781436650000,-700.0,0.00028462,2]
[425025403,1781436650000,-553.49,0.00028478,8]
[425025405,1781436650000,-500.0,0.00028478,8]
[425025404,1781436650000,-477.01,0.00028478,8]
[425025385,1781436650000,-153.04962806,0.00028393,2]
[425025377,1781436650000,-172.96384826,0.00028377,7]
[425025398,1781436650000,-203.26,0.00028478,8]
[425025371,1781436650000,-210.09571942,0.00028377,7]
[425025376,1781436650000,-153.76838597,0.00028377,7]
[425025345,1781436650000,-165.51230229,0.00028366,2]
[425025346,1781436650000,-307.11121707,0.00028366,7]
[425025350,1781436650000,-316.10721127,0.00028366,7]
[425025347,1781436650000,-246.06713292,0.00028366,7]
[425025349,1781436650000,-303.2868877,0.00028366,7]
[425025355,1781436650000,-407.06006112,0.00028366,7]
[425025356,1781436650000,-320.77678465,0.00028366,7]
[425025358,1781436650000,-162.5686597,0.00028368,7]
[425025359,1781436650000,-203.67839716,0.00028368,7]
[425025357,1781436650000,-233.59091806,0.00028366,7]
[425025360,1781436650000,-190.94044318,0.00028368,7]
[425025365,1781436650000,-164.60207246,0.00028368,7]
[425025348,1781436650000,-314.16041338,0.00028366,2]
[425025362,1781436650000,-161.34842309,0.00028368,7]
[425025361,1781436650000,-214.00200958,0.00028368,5]
[425025374,1781436650000,-208.56736529,0.00028377,7]
[425025368,1781436650000,-227.65675999,0.00028368,7]
[425025370,1781436650000,-176.84936605,0.00028368,7]
[425025366,1781436650000,-215.45094891,0.00028368,7]
[425025375,1781436650000,-164.16157748,0.00028377,7]
[425025369,1781436650000,-209.88682509,0.00028368,7]
[425025367,1781436650000,-158.6826149,0.00028368,7]
[425025364,1781436650000,-155.9581418,0.00028368,7]
[425025363,1781436650000,-189.14541322,0.00028368,7]
[425025372,1781436650000,-171.30862277,0.00028377,7]
[425025373,1781436650000,-208.48867941,0.00028377,7]
[425025436,1781436651000,-500.0,0.00028492,8]
[425025433,1781436651000,-500.0,0.00028492,8]
[425025440,1781436651000,-500.0,0.00028492,8]
[425025427,1781436651000,-500.0,0.00028491,8]
[425025428,1781436651000,-500.0,0.00028491,8]
[425025435,1781436651000,-983.27,0.00028492,8]
[425025439,1781436651000,-500.0,0.00028492,8]
[425025438,1781436651000,-500.0,0.00028492,8]
[425025444,1781436651000,-500.0,0.00028492,8]
[425025441,1781436651000,-416.97,0.00028492,8]
[425025448,1781436651000,-573.76,0.00028492,8]
[425025442,1781436651000,-500.0,0.00028492,8]
[425025443,1781436651000,-500.0,0.00028492,8]
[425025446,1781436651000,-500.0,0.00028492,8]
[425025447,1781436651000,-500.0,0.00028492,8]
[425025449,1781436651000,-300.59,0.00028492,8]
[425025453,1781436651000,-500.0,0.00028492,8]
[425025458,1781436651000,-500.0,0.00028492,8]
[425025452,1781436651000,-500.0,0.00028492,8]
[425025450,1781436651000,-500.0,0.00028492,8]
[425025437,1781436651000,-543.4,0.00028492,8]
[425025451,1781436651000,-500.0,0.00028492,8]
[425025445,1781436651000,-500.0,0.00028492,8]
[425025434,1781436651000,-422.21,0.00028492,8]
[425025415,1781436651000,-2292.85,0.00028479,8]
[425025431,1781436651000,-4262.73,0.00028492,8]
[425025455,1781436651000,-500.0,0.00028492,8]
[425025408,1781436651000,-500.0,0.00028478,8]
[425025411,1781436651000,-500.0,0.00028478,8]
[425025406,1781436651000,-500.0,0.00028478,8]
[425025409,1781436651000,-500.0,0.00028478,8]
[425025413,1781436651000,-622.64076973,0.00028478,2]
[425025412,1781436651000,-500.0,0.00028478,8]
[425025410,1781436651000,-500.0,0.00028478,8]
[425025407,1781436651000,-497.5,0.00028478,8]
[425025414,1781436651000,-163.17,0.00028478,8]
[425025416,1781436651000,-706.18,0.00028479,8]
[425025418,1781436651000,-500.0,0.00028479,8]
[425025425,1781436651000,-500.0,0.0002849,8]
[425025424,1781436651000,-199.29976469,0.00028481,2]
[425025417,1781436651000,-1636.44,0.00028479,8]
[425025421,1781436651000,-600.09609559,0.00028479,8]
[425025422,1781436651000,-500.0,0.00028479,8]
[425025419,1781436651000,-508.58,0.00028479,8]
[425025420,1781436651000,-416.97,0.00028479,8]
[425025423,1781436651000,-1066.66,0.00028479,8]
[425025426,1781436651000,-500.0,0.0002849,8]
[425025429,1781436651000,-500.0,0.00028491,8]
[425025432,1781436651000,-500.0,0.00028492,8]
[425025430,1781436651000,-500.0,0.00028491,8]
[425025460,1781436651000,-500.0,0.00028492,8]
[425025504,1781436651000,-285.45,0.00028492,8]
[425025457,1781436651000,-500.0,0.00028492,8]
[425025482,1781436651000,-956.36471392,0.00028492,8]
[425025497,1781436651000,-500.0,0.00028492,8]
[425025496,1781436651000,-500.0,0.00028492,8]
[425025498,1781436651000,-500.0,0.00028492,8]
[425025487,1781436651000,-1000.0,0.00028492,2]
[425025493,1781436651000,-500.0,0.00028492,8]
[425025494,1781436651000,-500.0,0.00028492,8]
[425025489,1781436651000,-500.0,0.00028492,8]
[425025488,1781436651000,-500.0,0.00028492,8]
[425025490,1781436651000,-500.0,0.00028492,8]
[425025478,1781436651000,-500.0,0.00028492,8]
[425025492,1781436651000,-615.64,0.00028492,8]
[425025499,1781436651000,-500.0,0.00028492,8]
[425025501,1781436651000,-500.0,0.00028492,8]
[425025502,1781436651000,-603.48,0.00028492,8]
[425025505,1781436651000,-545.51,0.00028492,8]
[425025503,1781436651000,-500.0,0.00028492,8]
[425025500,1781436651000,-500.0,0.00028492,8]
[425025508,1781436651000,-500.0,0.00028492,7]
[425025507,1781436651000,-500.0,0.00028492,7]
[425025459,1781436651000,-500.0,0.00028492,8]
[425025506,1781436651000,-591.82,0.00028492,8]
[425025491,1781436651000,-500.0,0.00028492,8]
[425025486,1781436651000,-325.06,0.00028492,8]
[425025495,1781436651000,-500.0,0.00028492,8]
[425025480,1781436651000,-956.36471393,0.00028492,8]
[425025454,1781436651000,-500.0,0.00028492,8]
[425025456,1781436651000,-599.28,0.00028492,8]
[425025483,1781436651000,-500.0,0.00028492,8]
[425025473,1781436651000,-291.12,0.00028492,8]
[425025472,1781436651000,-500.0,0.00028492,8]
[425025461,1781436651000,-500.0,0.00028492,8]
[425025463,1781436651000,-500.0,0.00028492,8]
[425025464,1781436651000,-500.0,0.00028492,8]
[425025465,1781436651000,-500.0,0.00028492,8]
[425025466,1781436651000,-500.0,0.00028492,8]
[425025467,1781436651000,-500.0,0.00028492,8]
[425025468,1781436651000,-500.0,0.00028492,8]
[425025462,1781436651000,-500.0,0.00028492,8]
[425025469,1781436651000,-500.0,0.00028492,8]
[425025470,1781436651000,-241.94,0.00028492,8]
[425025474,1781436651000,-500.0,0.00028492,8]
[425025484,1781436651000,-500.0,0.00028492,8]
[425025476,1781436651000,-293.84,0.00028492,8]
[425025479,1781436651000,-205.95930386,0.00028492,8]
[425025485,1781436651000,-500.0,0.00028492,8]
[425025481,1781436651000,-420.2,0.00028492,8]
[425025475,1781436651000,-500.0,0.00028492,8]
[425025471,1781436651000,-500.0,0.00028492,8]
[425025477,1781436651000,-152.52,0.00028492,8]
[425025539,1781436652000,-1506.29,0.00028493,8]
[425025538,1781436652000,-349.66452864,0.00028493,8]
[425025537,1781436652000,-500.0,0.00028493,8]
[425025542,1781436652000,-1286.88,0.00028493,8]
[425025535,1781436652000,-500.0,0.00028493,8]
[425025543,1781436652000,-500.0,0.00028493,8]
[425025536,1781436652000,-430.82597625,0.00028493,8]
[425025541,1781436652000,-500.0,0.00028493,8]
[425025544,1781436652000,-2156.37,0.00028493,8]
[425025550,1781436652000,-500.0,0.00028493,8]
[425025553,1781436652000,-599.77,0.00028493,8]
[425025549,1781436652000,-815.38,0.00028493,8]
[425025548,1781436652000,-531.68,0.00028493,8]
[425025551,1781436652000,-1488.35,0.00028493,8]
[425025545,1781436652000,-500.0,0.00028493,8]
[425025552,1781436652000,-500.0,0.00028493,8]
[425025554,1781436652000,-506.72166706,0.00028493,8]
[425025563,1781436652000,-500.0,0.00028493,8]
[425025564,1781436652000,-500.0,0.00028493,8]
[425025565,1781436652000,-500.0,0.00028493,8]
[425025540,1781436652000,-500.0,0.00028493,8]
[425025546,1781436652000,-500.0,0.00028493,8]
[425025534,1781436652000,-500.0,0.00028493,8]
[425025509,1781436652000,-454.36,0.00028492,7]
[425025529,1781436652000,-500.0,0.00028493,8]
[425025556,1781436652000,-500.0,0.00028493,8]
[425025511,1781436652000,-509.36,0.00028492,8]
[425025510,1781436652000,-266.5540281,0.00028492,2]
[425025512,1781436652000,-500.0,0.00028492,8]
[425025518,1781436652000,-237.94,0.00028492,8]
[425025517,1781436652000,-500.0,0.00028492,8]
[425025515,1781436652000,-500.0,0.00028492,8]
[425025514,1781436652000,-500.0,0.00028492,8]
[425025516,1781436652000,-500.0,0.00028492,8]
[425025513,1781436652000,-500.0,0.00028492,8]
[425025520,1781436652000,-500.0,0.00028492,8]
[425025519,1781436652000,-378.62,0.00028492,8]
[425025521,1781436652000,-188.61,0.00028492,8]
[425025522,1781436652000,-500.0,0.00028492,8]
[425025524,1781436652000,-295.99,0.00028492,8]
[425025523,1781436652000,-500.0,0.00028492,8]
[425025526,1781436652000,-792.24003188,0.00028493,8]
[425025525,1781436652000,-500.0,0.00028492,8]
[425025532,1781436652000,-500.0,0.00028493,8]
[425025528,1781436652000,-500.0,0.00028493,8]
[425025531,1781436652000,-500.0,0.00028493,8]
[425025527,1781436652000,-500.0,0.00028493,8]
[425025530,1781436652000,-500.0,0.00028493,8]
[425025533,1781436652000,-500.0,0.00028493,8]
[425025555,1781436652000,-500.0,0.00028493,8]
[425025547,1781436652000,-500.0,0.00028493,8]
[425025557,1781436652000,-500.0,0.00028493,8]
[425025588,1781436652000,-806.3,0.00028493,8]
[425025590,1781436652000,-500.0,0.00028493,8]
[425025589,1781436652000,-1359.23,0.00028493,8]
[425025591,1781436652000,-500.0,0.00028493,8]
[425025592,1781436652000,-500.0,0.00028493,8]
[425025594,1781436652000,-500.0,0.00028493,8]
[425025593,1781436652000,-500.0,0.00028493,8]
[425025596,1781436652000,-500.0,0.00028493,8]
[425025595,1781436652000,-500.0,0.00028493,8]
[425025599,1781436652000,-1597.46,0.00028493,8]
[425025586,1781436652000,-1633.28,0.00028493,8]
[425025598,1781436652000,-500.0,0.00028493,8]
[425025600,1781436652000,-757.43,0.00028493,8]
[425025607,1781436652000,-774.14,0.00028493,8]
[425025606,1781436652000,-500.0,0.00028493,8]
[425025608,1781436652000,-500.0,0.00028493,8]
[425025604,1781436652000,-896.92,0.00028493,8]
[425025603,1781436652000,-500.0,0.00028493,8]
[425025605,1781436652000,-500.0,0.00028493,8]
[425025609,1781436652000,-859.8,0.00028493,8]
[425025610,1781436652000,-413.13044882,0.00028493,8]
[425025558,1781436652000,-500.0,0.00028493,8]
[425025601,1781436652000,-500.0,0.00028493,8]
[425025597,1781436652000,-500.0,0.00028493,8]
[425025602,1781436652000,-500.0,0.00028493,8]
[425025585,1781436652000,-500.0,0.00028493,8]
[425025587,1781436652000,-500.0,0.00028493,8]
[425025560,1781436652000,-500.0,0.00028493,8]
[425025561,1781436652000,-490.44267969,0.00028493,8]
[425025559,1781436652000,-500.0,0.00028493,8]
[425025566,1781436652000,-779.21,0.00028493,8]
[425025573,1781436652000,-556.76,0.00028493,8]
[425025567,1781436652000,-961.38,0.00028493,8]
[425025568,1781436652000,-521.9,0.00028493,8]
[425025569,1781436652000,-500.0,0.00028493,8]
[425025574,1781436652000,-500.0,0.00028493,8]
[425025570,1781436652000,-601.94,0.00028493,8]
[425025572,1781436652000,-500.0,0.00028493,8]
[425025562,1781436652000,-648.57286859,0.00028493,8]
[425025571,1781436652000,-500.0,0.00028493,8]
[425025576,1781436652000,-537.56,0.00028493,8]
[425025578,1781436652000,-1289.85,0.00028493,8]
[425025582,1781436652000,-500.0,0.00028493,8]
[425025580,1781436652000,-500.0,0.00028493,8]
[425025577,1781436652000,-500.0,0.00028493,8]
[425025579,1781436652000,-523.52,0.00028493,8]
[425025581,1781436652000,-811.39,0.00028493,8]
[425025583,1781436652000,-812.74,0.00028493,8]
[425025584,1781436652000,-500.0,0.00028493,8]
[425025575,1781436652000,-500.0,0.00028493,8]
[425025637,1781436653000,-500.0,0.00028493,8]
[425025648,1781436653000,-531.01,0.00028493,7]
[425025646,1781436653000,-787.09,0.00028493,8]
[425025651,1781436653000,-500.0,0.00028493,8]
[425025644,1781436653000,-500.0,0.00028493,8]
[425025638,1781436653000,-500.0,0.00028493,8]
[425025643,1781436653000,-500.0,0.00028493,8]
[425025641,1781436653000,-1020.0,0.00028493,8]
[425025640,1781436653000,-1952.73,0.00028493,8]
[425025650,1781436653000,-500.0,0.00028493,8]
[425025642,1781436653000,-978.97,0.00028493,7]
[425025647,1781436653000,-538.80309221,0.00028493,8]
[425025655,1781436653000,-500.0,0.00028493,8]
[425025649,1781436653000,-1008.86,0.00028493,8]
[425025652,1781436653000,-517.29901638,0.00028493,8]
[425025654,1781436653000,-775.9,0.00028493,8]
[425025653,1781436653000,-2280.24,0.00028493,8]
[425025663,1781436653000,-500.0,0.00028493,8]
[425025660,1781436653000,-500.0,0.00028493,8]
[425025661,1781436653000,-525.21,0.00028493,8]
[425025657,1781436653000,-500.0,0.00028493,8]
[425025659,1781436653000,-2290.01,0.00028493,8]
[425025662,1781436653000,-1928.24,0.00028493,8]
[425025645,1781436653000,-500.0,0.00028493,8]
[425025633,1781436653000,-500.0,0.00028493,8]
[425025611,1781436653000,-919.22,0.00028493,8]
[425025636,1781436653000,-500.0,0.00028493,8]
[425025658,1781436653000,-500.0,0.00028493,8]
[425025615,1781436653000,-500.0,0.00028493,8]
[425025614,1781436653000,-679.47,0.00028493,8]
[425025616,1781436653000,-564.22,0.00028493,8]
[425025613,1781436653000,-500.0,0.00028493,8]
[425025612,1781436653000,-664.77,0.00028493,8]
[425025617,1781436653000,-671.22,0.00028493,8]
[425025619,1781436653000,-629.17,0.00028493,8]
[425025618,1781436653000,-1745.46,0.00028493,8]
[425025621,1781436653000,-575.17,0.00028493,8]
[425025620,1781436653000,-500.0,0.00028493,8]
[425025639,1781436653000,-1250.94,0.00028493,8]
[425025624,1781436653000,-707.44,0.00028493,8]
[425025623,1781436653000,-552.31,0.00028493,8]
[425025625,1781436653000,-890.71,0.00028493,8]
[425025630,1781436653000,-1348.17,0.00028493,8]
[425025626,1781436653000,-614.66,0.00028493,8]
[425025627,1781436653000,-515.11,0.00028493,8]
[425025628,1781436653000,-500.0,0.00028493,8]
[425025629,1781436653000,-500.0,0.00028493,8]
[425025631,1781436653000,-500.0,0.00028493,8]
[425025634,1781436653000,-500.0,0.00028493,8]
[425025632,1781436653000,-1088.42,0.00028493,8]
[425025635,1781436653000,-500.0,0.00028493,8]
[425025622,1781436653000,-500.0,0.00028493,8]
[425025665,1781436653000,-926.35,0.00028493,8]
[425025656,1781436653000,-500.0,0.00028493,8]
[425025666,1781436653000,-500.0,0.00028493,8]
[425025693,1781436653000,-537.41,0.00028493,8]
[425025696,1781436653000,-500.0,0.00028493,8]
[425025697,1781436653000,-569.66,0.00028493,8]
[425025698,1781436653000,-500.0,0.00028493,8]
[425025699,1781436653000,-500.0,0.00028493,8]
[425025702,1781436653000,-1212.61,0.00028493,8]
[425025700,1781436653000,-500.0,0.00028493,8]
[425025701,1781436653000,-500.0,0.00028493,8]
[425025703,1781436653000,-540.71,0.00028493,8]
[425025705,1781436653000,-500.0,0.00028493,8]
[425025704,1781436653000,-582.36,0.00028493,8]
[425025691,1781436653000,-578.0,0.00028493,8]
[425025708,1781436653000,-500.0,0.00028493,8]
[425025710,1781436653000,-1084.4,0.00028493,8]
[425025713,1781436653000,-538.92,0.00028493,8]
[425025707,1781436653000,-1560.74,0.00028493,8]
[425025709,1781436653000,-500.0,0.00028493,8]
[425025715,1781436653000,-303.48698123,0.00028493,8]
[425025714,1781436653000,-500.0,0.00028493,8]
[425025717,1781436653000,-678.56,0.00028493,8]
[425025711,1781436653000,-190.37598221,0.00028493,8]
[425025712,1781436653000,-2765.89,0.00028493,8]
[425025664,1781436653000,-517.72,0.00028493,8]
[425025716,1781436653000,-506.23,0.00028493,8]
[425025718,1781436653000,-869.79,0.00028493,8]
[425025690,1781436653000,-638.36,0.00028493,8]
[425025706,1781436653000,-500.0,0.00028493,8]
[425025692,1781436653000,-500.0,0.00028493,8]
[425025669,1781436653000,-1220.26,0.00028493,8]
[425025695,1781436653000,-1251.89,0.00028493,8]
[425025668,1781436653000,-726.26,0.00028493,8]
[425025671,1781436653000,-622.67783188,0.00028493,8]
[425025673,1781436653000,-554.77,0.00028493,8]
[425025670,1781436653000,-500.0,0.00028493,8]
[425025667,1781436653000,-500.0,0.00028493,8]
[425025672,1781436653000,-977.24,0.00028493,8]
[425025675,1781436653000,-500.0,0.00028493,8]
[425025680,1781436653000,-500.0,0.00028493,8]
[425025682,1781436653000,-897.18,0.00028493,8]
[425025676,1781436653000,-1356.84,0.00028493,8]
[425025674,1781436653000,-500.0,0.00028493,8]
[425025687,1781436653000,-895.56,0.00028493,8]
[425025688,1781436653000,-500.0,0.00028493,8]
[425025678,1781436653000,-569.74,0.00028493,8]
[425025689,1781436653000,-500.0,0.00028493,8]
[425025686,1781436653000,-692.5,0.00028493,8]
[425025685,1781436653000,-500.0,0.00028493,8]
[425025694,1781436653000,-500.0,0.00028493,8]
[425025679,1781436653000,-500.0,0.00028493,8]
[425025681,1781436653000,-1678.62,0.00028493,8]
[425025677,1781436653000,-500.0,0.00028493,8]
[425025683,1781436653000,-500.0,0.00028493,8]
[425025684,1781436653000,-556.64,0.00028493,8]
[425025758,1781436654000,-912.82,0.00028493,8]
[425025756,1781436654000,-500.0,0.00028493,8]
[425025760,1781436654000,-500.0,0.00028493,8]
[425025761,1781436654000,-774.71,0.00028493,8]
[425025746,1781436654000,-1811.24,0.00028493,8]
[425025748,1781436654000,-987.93,0.00028493,8]
[425025750,1781436654000,-531.55,0.00028493,8]
[425025747,1781436654000,-1003.12,0.00028493,8]
[425025749,1781436654000,-1099.49,0.00028493,8]
[425025755,1781436654000,-500.0,0.00028493,8]
[425025753,1781436654000,-524.56193552,0.00028493,8]
[425025754,1781436654000,-654.37,0.00028493,8]
[425025774,1781436654000,-500.0,0.00028493,8]
[425025762,1781436654000,-1189.81,0.00028493,8]
[425025759,1781436654000,-777.97,0.00028493,8]
[425025763,1781436654000,-634.38,0.00028493,8]
[425025766,1781436654000,-1588.13,0.00028493,8]
[425025764,1781436654000,-500.0,0.00028493,8]
[425025767,1781436654000,-500.0,0.00028493,8]
[425025768,1781436654000,-912.53,0.00028493,8]
[425025765,1781436654000,-552.94,0.00028493,8]
[425025772,1781436654000,-500.0,0.00028493,8]
[425025769,1781436654000,-598.75,0.00028493,8]
[425025771,1781436654000,-570.94,0.00028493,8]
[425025745,1781436654000,-500.0,0.00028493,8]
[425025757,1781436654000,-522.95,0.00028493,8]
[425025752,1781436654000,-1200.46,0.00028493,8]
[425025719,1781436654000,-500.0,0.00028493,8]
[425025744,1781436654000,-500.0,0.00028493,8]
[425025770,1781436654000,-500.0,0.00028493,8]
[425025720,1781436654000,-500.0,0.00028493,8]
[425025728,1781436654000,-500.0,0.00028493,8]
[425025729,1781436654000,-1370.23,0.00028493,8]
[425025721,1781436654000,-500.0,0.00028493,8]
[425025722,1781436654000,-500.0,0.00028493,8]
[425025723,1781436654000,-1025.91,0.00028493,8]
[425025725,1781436654000,-518.31,0.00028493,8]
[425025724,1781436654000,-874.3,0.00028493,8]
[425025726,1781436654000,-500.0,0.00028493,8]
[425025727,1781436654000,-500.0,0.00028493,8]
[425025730,1781436654000,-602.41,0.00028493,8]
[425025733,1781436654000,-2334.31,0.00028493,8]
[425025732,1781436654000,-500.0,0.00028493,8]
[425025731,1781436654000,-500.0,0.00028493,8]
[425025739,1781436654000,-500.0,0.00028493,8]
[425025737,1781436654000,-568.61,0.00028493,8]
[425025735,1781436654000,-500.0,0.00028493,8]
[425025736,1781436654000,-503.63,0.00028493,8]
[425025740,1781436654000,-500.0,0.00028493,8]
[425025734,1781436654000,-500.0,0.00028493,8]
[425025741,1781436654000,-500.0,0.00028493,8]
[425025738,1781436654000,-500.0,0.00028493,8]
[425025743,1781436654000,-1648.44,0.00028493,8]
[425025742,1781436654000,-500.0,0.00028493,8]
[425025751,1781436654000,-500.0,0.00028493,8]
[425025773,1781436654000,-787.18,0.00028493,8]
[425025825,1781436654000,-831.75,0.00028493,8]
[425025776,1781436654000,-741.68,0.00028493,8]
[425025808,1781436654000,-500.0,0.00028493,8]
[425025805,1781436654000,-500.0,0.00028493,8]
[425025806,1781436654000,-500.0,0.00028493,8]
[425025810,1781436654000,-500.0,0.00028493,8]
[425025820,1781436654000,-500.0,0.00028493,8]
[425025809,1781436654000,-500.0,0.00028493,8]
[425025811,1781436654000,-500.0,0.00028493,8]
[425025813,1781436654000,-500.0,0.00028493,8]
[425025812,1781436654000,-500.0,0.00028493,8]
[425025814,1781436654000,-500.0,0.00028493,8]
[425025816,1781436654000,-781.07,0.00028493,8]
[425025818,1781436654000,-500.0,0.00028493,8]
[425025817,1781436654000,-500.0,0.00028493,8]
[425025819,1781436654000,-500.0,0.00028493,8]
[425025823,1781436654000,-1784.22,0.00028493,8]
[425025821,1781436654000,-1123.95,0.00028493,8]
[425025824,1781436654000,-500.0,0.00028493,8]
[425025822,1781436654000,-1912.54,0.00028493,8]
[425025828,1781436654000,-557.26,0.00028493,8]
[425025826,1781436654000,-500.0,0.00028493,8]
[425025831,1781436654000,-500.0,0.00028493,8]
[425025830,1781436654000,-583.27,0.00028493,8]
[425025829,1781436654000,-784.08,0.00028493,8]
[425025827,1781436654000,-532.89,0.00028493,8]
[425025775,1781436654000,-636.28,0.00028493,8]
[425025804,1781436654000,-500.0,0.00028493,8]
[425025807,1781436654000,-793.99,0.00028493,8]
[425025815,1781436654000,-722.31,0.00028493,8]
[425025802,1781436654000,-1341.19,0.00028493,8]
[425025799,1781436654000,-500.0,0.00028493,8]
[425025784,1781436654000,-995.65,0.00028493,8]
[425025785,1781436654000,-500.0,0.00028493,8]
[425025779,1781436654000,-500.0,0.00028493,8]
[425025778,1781436654000,-500.0,0.00028493,8]
[425025780,1781436654000,-2216.26,0.00028493,8]
[425025781,1781436654000,-560.4,0.00028493,8]
[425025782,1781436654000,-500.0,0.00028493,8]
[425025786,1781436654000,-500.0,0.00028493,8]
[425025783,1781436654000,-500.0,0.00028493,8]